[Event "Late-Titled-Tuesday-Blitz-October-10-2023"]
[Site "Chess.com"]
[Date "2023.10.10"]
[Round "1"]
[White "Roberz12"]
[Black "GMKrikor"]
[Result "1-0"]
[WhiteElo "2440"]
[BlackElo "2787"]
[TimeControl "180+1"]
[EndTime "14:09:55 PDT"]
[Termination "Roberz12 won on time"]

1. Nf3 {[%clk 0:02:59.6]} 1... d5 {[%clk 0:02:55.3]} 2. a3 {[%clk 0:02:56.1]}
2... g6 {[%clk 0:02:49.5]} 3. d4 {[%clk 0:02:54.5]} 3... Bg7 {[%clk 0:02:44.2]}
4. g3 {[%clk 0:02:51.8]} 4... Nf6 {[%clk 0:02:39.4]} 5. Bg2 {[%clk 0:02:52.3]}
5... b5 {[%clk 0:02:39.5]} 6. O-O {[%clk 0:02:53.2]} 6... O-O {[%clk 0:02:38.5]}
7. b3 {[%clk 0:02:52.5]} 7... Nbd7 {[%clk 0:02:35.8]} 8. Bb2 {[%clk 0:02:50.5]}
8... Bb7 {[%clk 0:02:36]} 9. Ne5 {[%clk 0:02:42]} 9... e6 {[%clk 0:02:34.5]} 10.
c4 {[%clk 0:02:39]} 10... c6 {[%clk 0:02:18.4]} 11. cxb5 {[%clk 0:02:02.5]}
11... cxb5 {[%clk 0:02:14.1]} 12. Nd2 {[%clk 0:02:02.9]} 12... Nxe5 {[%clk
0:02:13.5]} 13. dxe5 {[%clk 0:02:03.1]} 13... Nd7 {[%clk 0:02:13.9]} 14. Nf3
{[%clk 0:02:03]} 14... Rc8 {[%clk 0:02:03.8]} 15. Rc1 {[%clk 0:02:02.6]} 15...
Qe7 {[%clk 0:01:57.8]} 16. Qd4 {[%clk 0:01:59.7]} 16... a6 {[%clk 0:01:46.2]}
17. b4 {[%clk 0:01:45.7]} 17... Rc4 {[%clk 0:01:35.3]} 18. Qa7 {[%clk
0:01:44.1]} 18... Nb8 {[%clk 0:01:22]} 19. Nd2 {[%clk 0:01:42.7]} 19... Rcc8
{[%clk 0:01:14.4]} 20. Nb3 {[%clk 0:01:19.8]} 20... Nc6 {[%clk 0:01:12]} 21. Qe3
{[%clk 0:01:19.9]} 21... Rc7 {[%clk 0:01:08]} 22. Nc5 {[%clk 0:01:01.5]} 22...
Bc8 {[%clk 0:01:06.3]} 23. f4 {[%clk 0:00:58.7]} 23... Rd8 {[%clk 0:01:03.9]}
24. Rfd1 {[%clk 0:00:57.7]} 24... Nb8 {[%clk 0:00:56.1]} 25. Nb3 {[%clk
0:00:56.6]} 25... Bb7 {[%clk 0:00:51.1]} 26. Qb6 {[%clk 0:00:55.6]} 26... Rdc8
{[%clk 0:00:44.7]} 27. Rc5 {[%clk 0:00:22.9]} 27... Ba8 {[%clk 0:00:33.4]} 28.
Rdc1 {[%clk 0:00:22.3]} 28... Rxc5 {[%clk 0:00:33.2]} 29. Rxc5 {[%clk
0:00:22.5]} 29... Qe8 {[%clk 0:00:30.1]} 30. Nd4 {[%clk 0:00:18.6]} 30... Bf8
{[%clk 0:00:28.5]} 31. Rxc8 {[%clk 0:00:18.4]} 31... Qxc8 {[%clk 0:00:29.4]} 32.
e3 {[%clk 0:00:17.7]} 32... Nd7 {[%clk 0:00:28]} 33. Qa7 {[%clk 0:00:17.3]}
33... Qb7 {[%clk 0:00:24.8]} 34. Qxb7 {[%clk 0:00:17.1]} 34... Bxb7 {[%clk
0:00:25.7]} 35. Bf1 {[%clk 0:00:17.7]} 35... Nb6 {[%clk 0:00:26]} 36. Bc1 {[%clk
0:00:17.9]} 36... Nc4 {[%clk 0:00:25.9]} 37. Nb3 {[%clk 0:00:18.5]} 37... Be7
{[%clk 0:00:24.1]} 38. Kf2 {[%clk 0:00:18.1]} 38... f6 {[%clk 0:00:21.2]} 39.
exf6 {[%clk 0:00:17.1]} 39... Bxf6 {[%clk 0:00:22.1]} 40. Nc5 {[%clk 0:00:15.3]}
40... Bc8 {[%clk 0:00:22.7]} 41. e4 {[%clk 0:00:15.4]} 41... Bd4+ {[%clk
0:00:21.3]} 42. Kf3 {[%clk 0:00:15.8]} 42... dxe4+ {[%clk 0:00:17.7]} 43. Kxe4
{[%clk 0:00:15.7]} 43... Bf6 {[%clk 0:00:17.5]} 44. Kd3 {[%clk 0:00:15.3]} 44...
Kf7 {[%clk 0:00:16.7]} 45. Bg2 {[%clk 0:00:15.4]} 45... Ke8 {[%clk 0:00:11.7]}
46. a4 {[%clk 0:00:15.7]} 46... Nb6 {[%clk 0:00:09.8]} 47. axb5 {[%clk
0:00:15.9]} 47... axb5 {[%clk 0:00:09.8]} 48. Bc6+ {[%clk 0:00:16.6]} 48... Kd8
{[%clk 0:00:09.8]} 49. Bxb5 {[%clk 0:00:17]} 49... Nd5 {[%clk 0:00:10.4]} 50.
Bd2 {[%clk 0:00:15.3]} 50... Kc7 {[%clk 0:00:11]} 51. Bc4 {[%clk 0:00:14.7]}
51... Be7 {[%clk 0:00:10.4]} 52. Bxd5 {[%clk 0:00:14.1]} 52... exd5 {[%clk
0:00:11.3]} 53. Kd4 {[%clk 0:00:14.6]} 53... Kc6 {[%clk 0:00:11.7]} 54. Nd3
{[%clk 0:00:12.7]} 54... Be6 {[%clk 0:00:09.7]} 55. Ne5+ {[%clk 0:00:13.6]}
55... Kb5 {[%clk 0:00:09.9]} 56. g4 {[%clk 0:00:12.9]} 56... Bf6 {[%clk
0:00:09]} 57. h3 {[%clk 0:00:12.6]} 57... Bg7 {[%clk 0:00:05.9]} 58. Kd3 {[%clk
0:00:11.1]} 58... g5 {[%clk 0:00:05.5]} 59. Nf3 {[%clk 0:00:10.7]} 59... gxf4
{[%clk 0:00:05.4]} 60. Bxf4 {[%clk 0:00:11.6]} 60... Kxb4 {[%clk 0:00:05.1]} 61.
Nd4 {[%clk 0:00:12.5]} 61... Bd7 {[%clk 0:00:05]} 62. Bd6+ {[%clk 0:00:12.7]}
62... Ka5 {[%clk 0:00:04.8]} 63. Nf5 {[%clk 0:00:13.4]} 63... Bf6 {[%clk
0:00:05.1]} 64. Be7 {[%clk 0:00:13.3]} 64... Be5 {[%clk 0:00:05.1]} 65. Ke3
{[%clk 0:00:12.1]} 65... Kb6 {[%clk 0:00:04.3]} 66. Nd4 {[%clk 0:00:12.2]} 66...
Kc7 {[%clk 0:00:04.4]} 67. Bg5 {[%clk 0:00:12.6]} 67... Bg7 {[%clk 0:00:02.9]}
68. Bf4+ {[%clk 0:00:13.5]} 68... Kd8 {[%clk 0:00:03.3]} 69. Nf5 {[%clk
0:00:13.3]} 69... Bf6 {[%clk 0:00:03.5]} 70. Nd6 {[%clk 0:00:10.1]} 70... Ke7
{[%clk 0:00:03.4]} 71. Nf5+ {[%clk 0:00:10.4]} 71... Kf7 {[%clk 0:00:03.9]} 72.
Nd4 {[%clk 0:00:10.6]} 72... Bc8 {[%clk 0:00:02.9]} 73. Nf3 {[%clk 0:00:11.5]}
73... Kg6 {[%clk 0:00:01.9]} 74. Nd4 {[%clk 0:00:12.4]} 74... Bd7 {[%clk
0:00:01.9]} 75. Nf3 {[%clk 0:00:13]} 75... Be7 {[%clk 0:00:02.5]} 76. Ne5+
{[%clk 0:00:13.6]} 76... Kg7 {[%clk 0:00:01.8]} 77. Nxd7 {[%clk 0:00:14.5]}
77... Kf7 {[%clk 0:00:01.5]} 78. Ne5+ {[%clk 0:00:15]} 78... Ke6 {[%clk
0:00:02.1]} 79. Nf3 {[%clk 0:00:15.9]} 79... Bc5+ {[%clk 0:00:02.5]} 80. Kd3
{[%clk 0:00:15.2]} 80... Kf6 {[%clk 0:00:02.5]} 81. Be5+ {[%clk 0:00:15.1]}
81... Kg6 {[%clk 0:00:02.8]} 82. Bd4 {[%clk 0:00:16]} 82... Bd6 {[%clk
0:00:02.7]} 83. Be3 {[%clk 0:00:16.3]} 83... h5 {[%clk 0:00:02.5]} 84. gxh5+
{[%clk 0:00:15.6]} 84... Kxh5 {[%clk 0:00:02.9]} 85. Kd4 {[%clk 0:00:16.5]}
85... Be7 {[%clk 0:00:03.2]} 86. Kxd5 {[%clk 0:00:17.1]} 86... Bf6 {[%clk
0:00:03.9]} 87. Ke6 {[%clk 0:00:17.6]} 87... Bd8 {[%clk 0:00:04.3]} 88. Bd4
{[%clk 0:00:16.3]} 88... Bc7 {[%clk 0:00:04.1]} 89. Bf6 {[%clk 0:00:16.3]} 89...
Bg3 {[%clk 0:00:03.8]} 90. Kf5 {[%clk 0:00:16.1]} 90... Bf2 {[%clk 0:00:04]} 91.
Bg5 {[%clk 0:00:15.3]} 91... Bg3 {[%clk 0:00:04.2]} 92. Nd4 {[%clk 0:00:10.6]}
92... Bh4 {[%clk 0:00:02.1]} 93. Bf4 {[%clk 0:00:09.9]} 93... Be7 {[%clk
0:00:02]} 94. Bg3 {[%clk 0:00:08.4]} 94... Kh6 {[%clk 0:00:01.9]} 95. Ne6 {[%clk
0:00:08.9]} 95... Bb4 {[%clk 0:00:01.6]} 96. Bf4+ {[%clk 0:00:09.5]} 96... Kh7
{[%clk 0:00:02.1]} 97. Bg5 {[%clk 0:00:10.4]} 97... Kg8 {[%clk 0:00:02.6]} 98.
h4 {[%clk 0:00:11]} 98... Bc3 {[%clk 0:00:03.5]} 99. h5 {[%clk 0:00:11.9]} 99...
Bh8 {[%clk 0:00:03.6]} 100. Kg6 {[%clk 0:00:12.5]} 100... Bc3 {[%clk 0:00:03.3]}
101. h6 {[%clk 0:00:13.2]} 101... Kh8 {[%clk 0:00:03.2]} 102. h7 {[%clk
0:00:08.9]} 102... Bg7 {[%clk 0:00:02.4]} 103. Nd8 {[%clk 0:00:09.2]} 1-0

[Event "Late-Titled-Tuesday-Blitz-October-10-2023"]
[Site "Chess.com"]
[Date "2023.10.10"]
[Round "2"]
[White "Hirna2005"]
[Black "WindWhistler11"]
[Result "0-1"]
[WhiteElo "2272"]
[BlackElo "2512"]
[TimeControl "180+1"]
[EndTime "14:11:50 PDT"]
[Termination "WindWhistler11 won by resignation"]

1. e4 {[%clk 0:03:00.9]} 1... e6 {[%clk 0:02:59.6]} 2. d4 {[%clk 0:03:00.8]}
2... d5 {[%clk 0:03:00.1]} 3. e5 {[%clk 0:03:01.1]} 3... c5 {[%clk 0:03:00.2]}
4. c3 {[%clk 0:03:01.7]} 4... Nc6 {[%clk 0:03:00.2]} 5. Be3 {[%clk 0:03:02.3]}
5... Bd7 {[%clk 0:03:00.7]} 6. Qd2 {[%clk 0:03:01.8]} 6... Nge7 {[%clk
0:03:00.5]} 7. Nf3 {[%clk 0:03:01.8]} 7... Nf5 {[%clk 0:03:00.4]} 8. Bd3 {[%clk
0:03:02.1]} 8... g6 {[%clk 0:02:57.6]} 9. O-O {[%clk 0:03:01.2]} 9... Nxe3
{[%clk 0:02:56.4]} 10. fxe3 {[%clk 0:03:00.9]} 10... Bh6 {[%clk 0:02:55.9]} 11.
Qf2 {[%clk 0:03:00.1]} 11... O-O {[%clk 0:02:55.2]} 12. Nbd2 {[%clk 0:02:56.3]}
12... f6 {[%clk 0:02:45.2]} 13. exf6 {[%clk 0:02:50]} 13... Rxf6 {[%clk
0:02:41.9]} 14. e4 {[%clk 0:02:49.5]} 14... cxd4 {[%clk 0:02:33.7]} 15. e5
{[%clk 0:02:34.9]} 15... Be3 {[%clk 0:02:29.9]} 0-1

[Event "Late-Titled-Tuesday-Blitz-October-10-2023"]
[Site "Chess.com"]
[Date "2023.10.10"]
[Round "2"]
[White "kleinebeer98"]
[Black "Zhbugnoimt"]
[Result "1-0"]
[WhiteElo "2860"]
[BlackElo "2555"]
[TimeControl "180+1"]
[EndTime "14:12:29 PDT"]
[Termination "kleinebeer98 won by resignation"]

1. e4 {[%clk 0:03:00]} 1... c5 {[%clk 0:02:59.8]} 2. Nf3 {[%clk 0:03:00.1]} 2...
d6 {[%clk 0:03:00.4]} 3. d4 {[%clk 0:03:00.5]} 3... cxd4 {[%clk 0:03:01.3]} 4.
Nxd4 {[%clk 0:03:01.4]} 4... Nf6 {[%clk 0:03:02]} 5. Nc3 {[%clk 0:03:02]} 5...
a6 {[%clk 0:03:02.7]} 6. a3 {[%clk 0:03:02.5]} 6... e6 {[%clk 0:03:01.8]} 7. g4
{[%clk 0:03:02.4]} 7... Be7 {[%clk 0:03:01.2]} 8. g5 {[%clk 0:03:02.4]} 8...
Nfd7 {[%clk 0:03:01.5]} 9. h4 {[%clk 0:03:03]} 9... b5 {[%clk 0:03:01.7]} 10.
Be3 {[%clk 0:03:03.9]} 10... Bb7 {[%clk 0:03:02.1]} 11. Rg1 {[%clk 0:03:03.2]}
11... Nc6 {[%clk 0:02:50.9]} 12. h5 {[%clk 0:03:00.6]} 12... Nxd4 {[%clk
0:02:27.6]} 13. Qxd4 {[%clk 0:03:01.5]} 13... Ne5 {[%clk 0:02:27.5]} 14. Be2
{[%clk 0:03:01.1]} 14... Rc8 {[%clk 0:02:15.3]} 15. f4 {[%clk 0:02:58]} 15...
Nc4 {[%clk 0:02:08.6]} 16. Bxc4 {[%clk 0:02:57.9]} 16... Rxc4 {[%clk 0:02:08.6]}
17. Qxg7 {[%clk 0:02:58.8]} 17... Kd7 {[%clk 0:02:05.4]} 18. O-O-O {[%clk
0:02:31]} 18... Qa5 {[%clk 0:02:04.8]} 19. Qxh8 {[%clk 0:02:24.9]} 1-0

[Event "Late-Titled-Tuesday-Blitz-October-10-2023"]
[Site "Chess.com"]
[Date "2023.10.10"]
[Round "2"]
[White "filipluczak05"]
[Black "iturrizaga"]
[Result "0-1"]
[WhiteElo "2607"]
[BlackElo "2995"]
[TimeControl "180+1"]
[EndTime "14:13:05 PDT"]
[Termination "iturrizaga won by checkmate"]

1. d4 {[%clk 0:03:00.9]} 1... Nf6 {[%clk 0:02:59.7]} 2. Nc3 {[%clk 0:02:59.9]}
2... d5 {[%clk 0:02:58.9]} 3. Bf4 {[%clk 0:02:59.3]} 3... e6 {[%clk 0:02:56.7]}
4. e3 {[%clk 0:02:58.7]} 4... a6 {[%clk 0:02:56.4]} 5. g4 {[%clk 0:02:58.1]}
5... c5 {[%clk 0:02:54.6]} 6. g5 {[%clk 0:02:57.4]} 6... Nfd7 {[%clk 0:02:55.3]}
7. Nf3 {[%clk 0:02:55.4]} 7... Nc6 {[%clk 0:02:55.4]} 8. Qd2 {[%clk 0:02:47.6]}
8... h6 {[%clk 0:02:55.3]} 9. gxh6 {[%clk 0:02:42.4]} 9... g6 {[%clk 0:02:55.7]}
10. O-O-O {[%clk 0:02:40.1]} 10... b5 {[%clk 0:02:55.8]} 11. dxc5 {[%clk
0:02:39]} 11... b4 {[%clk 0:02:55.8]} 12. Na4 {[%clk 0:02:36.4]} 12... Qa5
{[%clk 0:02:53.8]} 13. b3 {[%clk 0:02:35]} 13... Nxc5 {[%clk 0:02:52.3]} 14.
Nxc5 {[%clk 0:02:31.2]} 14... Qxa2 {[%clk 0:02:50.6]} 15. Be5 {[%clk 0:02:16.3]}
15... Nxe5 {[%clk 0:02:48.9]} 16. Qd4 {[%clk 0:02:16.1]} 16... Nxf3 {[%clk
0:02:42.8]} 17. Qxh8 {[%clk 0:02:16.1]} 17... e5 {[%clk 0:02:43.1]} 18. c4
{[%clk 0:01:39.7]} 18... bxc3 {[%clk 0:02:44]} 19. Nd3 {[%clk 0:01:38.6]} 19...
c2 {[%clk 0:02:42.1]} 20. Be2 {[%clk 0:01:27]} 20... Qb1# {[%clk 0:02:28.3]} 0-1

[Event "Late-Titled-Tuesday-Blitz-October-10-2023"]
[Site "Chess.com"]
[Date "2023.10.10"]
[Round "2"]
[White "albi1999"]
[Black "Jospem"]
[Result "0-1"]
[WhiteElo "2655"]
[BlackElo "3110"]
[TimeControl "180+1"]
[EndTime "14:13:42 PDT"]
[Termination "Jospem won by resignation"]

1. Nf3 {[%clk 0:03:00.9]} 1... c5 {[%clk 0:02:59.5]} 2. b3 {[%clk 0:03:00.7]}
2... d5 {[%clk 0:02:57.5]} 3. Bb2 {[%clk 0:03:00.2]} 3... a6 {[%clk 0:02:58]} 4.
e3 {[%clk 0:02:58.1]} 4... Nf6 {[%clk 0:02:58.7]} 5. c4 {[%clk 0:02:57.4]} 5...
dxc4 {[%clk 0:02:54.7]} 6. Bxc4 {[%clk 0:02:56.8]} 6... e6 {[%clk 0:02:54.7]} 7.
O-O {[%clk 0:02:56.3]} 7... Nbd7 {[%clk 0:02:55.4]} 8. d4 {[%clk 0:02:55.3]}
8... Be7 {[%clk 0:02:55.6]} 9. Nbd2 {[%clk 0:02:54.7]} 9... O-O {[%clk 0:02:54]}
10. Rc1 {[%clk 0:02:54.3]} 10... b5 {[%clk 0:02:52.5]} 11. Be2 {[%clk
0:02:53.9]} 11... Bb7 {[%clk 0:02:52.3]} 12. Qc2 {[%clk 0:02:52.2]} 12... Rc8
{[%clk 0:02:52.1]} 13. Qb1 {[%clk 0:02:49.9]} 13... h6 {[%clk 0:02:51.8]} 14.
Rfd1 {[%clk 0:02:49.3]} 14... Qb6 {[%clk 0:02:51.9]} 15. dxc5 {[%clk 0:02:44]}
15... Bxc5 {[%clk 0:02:52.8]} 16. Qa1 {[%clk 0:02:30.2]} 16... Rfd8 {[%clk
0:02:50.5]} 17. Bd4 {[%clk 0:02:15.8]} 17... Bxd4 {[%clk 0:02:43.8]} 18. Nxd4
{[%clk 0:02:15.9]} 18... Nc5 {[%clk 0:02:40.9]} 19. N2f3 {[%clk 0:02:10.7]}
19... b4 {[%clk 0:02:36.1]} 20. Ne5 {[%clk 0:02:10.5]} 20... Nfe4 {[%clk
0:02:32.7]} 21. Nc4 {[%clk 0:02:05.4]} 21... Qc7 {[%clk 0:02:28.7]} 22. Bf3
{[%clk 0:02:03.7]} 22... Nc3 {[%clk 0:02:26.6]} 23. Bxb7 {[%clk 0:02:03.2]}
23... Qxb7 {[%clk 0:02:26]} 24. Re1 {[%clk 0:02:00.4]} 24... Nd3 {[%clk
0:02:24.9]} 25. a3 {[%clk 0:01:46.2]} 25... Nxc1 {[%clk 0:02:18]} 26. Rxc1
{[%clk 0:01:46]} 26... Rxd4 {[%clk 0:02:04.7]} 27. exd4 {[%clk 0:01:46.2]} 27...
Ne2+ {[%clk 0:02:05]} 28. Kf1 {[%clk 0:01:46.4]} 28... Nxc1 {[%clk 0:02:05.9]}
29. Qxc1 {[%clk 0:01:45.4]} 29... Qe4 {[%clk 0:01:59.4]} 0-1

[Event "Late-Titled-Tuesday-Blitz-October-10-2023"]
[Site "Chess.com"]
[Date "2023.10.10"]
[Round "2"]
[White "angryspacevoid"]
[Black "sofaceindisguise"]
[Result "1-0"]
[WhiteElo "2546"]
[BlackElo "2753"]
[TimeControl "180+1"]
[EndTime "14:13:43 PDT"]
[Termination "angryspacevoid won by resignation"]

1. e4 {[%clk 0:02:56.1]} 1... c5 {[%clk 0:02:59.7]} 2. c3 {[%clk 0:02:56.1]}
2... Qa5 {[%clk 0:02:58.6]} 3. Na3 {[%clk 0:02:49.3]} 3... g6 {[%clk 0:02:49.4]}
4. d4 {[%clk 0:02:34.7]} 4... cxd4 {[%clk 0:02:49.1]} 5. Qxd4 {[%clk 0:02:34.3]}
5... Nf6 {[%clk 0:02:47.6]} 6. Nc4 {[%clk 0:02:32.3]} 6... Qc7 {[%clk
0:02:44.5]} 7. e5 {[%clk 0:02:29.9]} 7... Nc6 {[%clk 0:02:44.8]} 8. Qf4 {[%clk
0:02:18.1]} 8... Nh5 {[%clk 0:02:42.6]} 9. Qe4 {[%clk 0:02:16.9]} 9... b5 {[%clk
0:02:35.3]} 10. Nd6+ {[%clk 0:02:16.8]} 10... Kd8 {[%clk 0:02:21.3]} 11. Nxf7+
{[%clk 0:02:14]} 11... Ke8 {[%clk 0:02:21.9]} 12. Nxh8 {[%clk 0:01:57.7]} 12...
Qxe5 {[%clk 0:02:19.4]} 13. Qxe5 {[%clk 0:01:53.7]} 13... Nxe5 {[%clk
0:02:20.3]} 14. Bxb5 {[%clk 0:01:41.3]} 14... Bg7 {[%clk 0:02:20.1]} 15. Nxg6
{[%clk 0:01:40.3]} 15... hxg6 {[%clk 0:02:19.6]} 16. Nf3 {[%clk 0:01:35.9]}
16... Nxf3+ {[%clk 0:02:18.8]} 17. gxf3 {[%clk 0:01:36.4]} 17... Rb8 {[%clk
0:02:19.2]} 18. Bd3 {[%clk 0:01:34.5]} 18... Kf7 {[%clk 0:02:17.8]} 19. Rg1
{[%clk 0:01:34.2]} 19... Rb6 {[%clk 0:02:18.4]} 20. Be3 {[%clk 0:01:30.9]} 20...
Rd6 {[%clk 0:02:12.8]} 21. O-O-O {[%clk 0:01:30.1]} 21... Ba6 {[%clk 0:02:09.1]}
22. Bxa6 {[%clk 0:01:24.8]} 22... Rxa6 {[%clk 0:02:10]} 23. Rxd7 {[%clk
0:01:24]} 1-0

[Event "Late-Titled-Tuesday-Blitz-October-10-2023"]
[Site "Chess.com"]
[Date "2023.10.10"]
[Round "2"]
[White "SpeedofLight0"]
[Black "Skatchkov_V"]
[Result "1-0"]
[WhiteElo "3021"]
[BlackElo "2618"]
[TimeControl "180+1"]
[EndTime "14:13:46 PDT"]
[Termination "SpeedofLight0 won by resignation"]

1. d4 {[%clk 0:03:00.9]} 1... Nf6 {[%clk 0:03:00]} 2. Nf3 {[%clk 0:02:59.2]}
2... d5 {[%clk 0:02:59.2]} 3. c4 {[%clk 0:02:59.1]} 3... e6 {[%clk 0:02:59.6]}
4. Nc3 {[%clk 0:02:58.4]} 4... Ne4 {[%clk 0:02:59.9]} 5. Bd2 {[%clk 0:02:56.1]}
5... Nxd2 {[%clk 0:02:58.3]} 6. Qxd2 {[%clk 0:02:56.1]} 6... Be7 {[%clk
0:02:54.4]} 7. e3 {[%clk 0:02:56.2]} 7... O-O {[%clk 0:02:54.3]} 8. Bd3 {[%clk
0:02:56.5]} 8... Nd7 {[%clk 0:02:46.5]} 9. cxd5 {[%clk 0:02:55.7]} 9... exd5
{[%clk 0:02:41]} 10. Nxd5 {[%clk 0:02:56.6]} 10... Bd6 {[%clk 0:02:41.6]} 11.
Nc3 {[%clk 0:02:55]} 11... c5 {[%clk 0:02:41.1]} 12. O-O {[%clk 0:02:48.5]}
12... cxd4 {[%clk 0:02:39.9]} 13. exd4 {[%clk 0:02:49.2]} 13... Nf6 {[%clk
0:02:38.5]} 14. h3 {[%clk 0:02:48.3]} 14... Be6 {[%clk 0:02:32.9]} 15. Rfe1
{[%clk 0:02:46.2]} 15... Qa5 {[%clk 0:02:20.5]} 16. Ne4 {[%clk 0:02:25.2]} 16...
Qxd2 {[%clk 0:02:20.4]} 17. Nxf6+ {[%clk 0:02:24.3]} 17... gxf6 {[%clk
0:02:21.3]} 18. Nxd2 {[%clk 0:02:24.7]} 18... Bb4 {[%clk 0:02:22]} 19. Re2
{[%clk 0:02:18.2]} 19... Rfd8 {[%clk 0:02:22]} 20. Nf3 {[%clk 0:02:18.2]} 20...
Rac8 {[%clk 0:02:15.3]} 21. Be4 {[%clk 0:02:04.9]} 21... Rd7 {[%clk 0:01:56]}
22. d5 {[%clk 0:01:59.4]} 22... Bxd5 {[%clk 0:01:47.2]} 23. Bf5 {[%clk
0:01:59.5]} 23... Be6 {[%clk 0:01:30.7]} 24. Rxe6 {[%clk 0:01:58.2]} 1-0

[Event "Late-Titled-Tuesday-Blitz-October-10-2023"]
[Site "Chess.com"]
[Date "2023.10.10"]
[Round "2"]
[White "Horokoskii"]
[Black "Dontmesswithme_2"]
[Result "0-1"]
[WhiteElo "2093"]
[BlackElo "2423"]
[TimeControl "180+1"]
[EndTime "14:13:51 PDT"]
[Termination "Dontmesswithme_2 won by resignation"]

1. c4 {[%clk 0:03:00.9]} 1... c6 {[%clk 0:03:00]} 2. e4 {[%clk 0:02:57.9]} 2...
d5 {[%clk 0:02:56.1]} 3. exd5 {[%clk 0:02:56.9]} 3... cxd5 {[%clk 0:02:57]} 4.
d4 {[%clk 0:02:57]} 4... Nf6 {[%clk 0:02:56.6]} 5. Nc3 {[%clk 0:02:57]} 5... Nc6
{[%clk 0:02:56.6]} 6. Nf3 {[%clk 0:02:56]} 6... e6 {[%clk 0:02:53.6]} 7. Bg5
{[%clk 0:02:54.9]} 7... Be7 {[%clk 0:02:53.4]} 8. Rc1 {[%clk 0:02:51.5]} 8...
O-O {[%clk 0:02:52.3]} 9. cxd5 {[%clk 0:02:51]} 9... Nxd5 {[%clk 0:02:50.9]} 10.
Bxe7 {[%clk 0:02:51.1]} 10... Ncxe7 {[%clk 0:02:51.4]} 11. Bd3 {[%clk
0:02:51.4]} 11... Nf4 {[%clk 0:02:44.6]} 12. Bb1 {[%clk 0:02:48.9]} 12... Nxg2+
{[%clk 0:02:43.5]} 13. Kf1 {[%clk 0:02:48.6]} 13... Nf4 {[%clk 0:02:41.5]} 14.
Rg1 {[%clk 0:02:45.8]} 14... Neg6 {[%clk 0:02:40]} 15. Qd2 {[%clk 0:02:37.1]}
15... b6 {[%clk 0:02:36.8]} 16. Rg4 {[%clk 0:02:21.5]} 16... e5 {[%clk
0:02:15.5]} 17. Rg1 {[%clk 0:02:01.8]} 17... Ba6+ {[%clk 0:01:44.4]} 18. Ke1
{[%clk 0:01:56.5]} 18... exd4 {[%clk 0:01:44.6]} 19. Nxd4 {[%clk 0:01:56]} 19...
Qe7+ {[%clk 0:01:37.8]} 20. Kd1 {[%clk 0:01:55.9]} 20... Rad8 {[%clk 0:01:34.3]}
21. Bxg6 {[%clk 0:01:55.2]} 21... fxg6 {[%clk 0:01:31.8]} 22. Kc2 {[%clk
0:01:54.6]} 22... Bd3+ {[%clk 0:01:28.8]} 0-1

[Event "Late-Titled-Tuesday-Blitz-October-10-2023"]
[Site "Chess.com"]
[Date "2023.10.10"]
[Round "2"]
[White "PNEPaul"]
[Black "Levanzovsky"]
[Result "0-1"]
[WhiteElo "1991"]
[BlackElo "2418"]
[TimeControl "180+1"]
[EndTime "14:13:58 PDT"]
[Termination "Levanzovsky won by resignation"]

1. e4 {[%clk 0:03:00.9]} 1... e5 {[%clk 0:02:59.2]} 2. Nf3 {[%clk 0:02:59.7]}
2... Nc6 {[%clk 0:02:59.3]} 3. Bc4 {[%clk 0:02:59.5]} 3... Bc5 {[%clk
0:02:59.2]} 4. b4 {[%clk 0:02:59.5]} 4... Bxb4 {[%clk 0:02:59.1]} 5. c3 {[%clk
0:02:59.8]} 5... Bd6 {[%clk 0:02:58.6]} 6. d4 {[%clk 0:02:56.6]} 6... Nf6 {[%clk
0:02:58.6]} 7. Bg5 {[%clk 0:02:52.3]} 7... h6 {[%clk 0:02:57.6]} 8. Bh4 {[%clk
0:02:52.4]} 8... g5 {[%clk 0:02:32.6]} 9. Nxg5 {[%clk 0:02:52.3]} 9... hxg5
{[%clk 0:02:31.7]} 10. Bxg5 {[%clk 0:02:52.5]} 10... Be7 {[%clk 0:02:27.7]} 11.
h4 {[%clk 0:01:33.5]} 11... Nxe4 {[%clk 0:02:16.2]} 12. O-O {[%clk 0:01:04.4]}
12... Bxg5 {[%clk 0:02:06.6]} 13. Qf3 {[%clk 0:00:54.6]} 13... d5 {[%clk
0:02:04]} 0-1

[Event "Late-Titled-Tuesday-Blitz-October-10-2023"]
[Site "Chess.com"]
[Date "2023.10.10"]
[Round "2"]
[White "Djager97"]
[Black "Baku_Boulevard"]
[Result "0-1"]
[WhiteElo "2633"]
[BlackElo "3034"]
[TimeControl "180+1"]
[EndTime "14:14:02 PDT"]
[Termination "Baku_Boulevard won by resignation"]

1. e4 {[%clk 0:03:00.9]} 1... c5 {[%clk 0:02:59.9]} 2. Nc3 {[%clk 0:03:01.5]}
2... Nc6 {[%clk 0:02:59.8]} 3. Nge2 {[%clk 0:03:01.4]} 3... g6 {[%clk
0:02:58.2]} 4. g3 {[%clk 0:03:01.5]} 4... d6 {[%clk 0:02:58.1]} 5. Bg2 {[%clk
0:03:01.6]} 5... Bg7 {[%clk 0:02:58.8]} 6. O-O {[%clk 0:03:01.7]} 6... h5 {[%clk
0:02:58.2]} 7. d3 {[%clk 0:03:01.5]} 7... h4 {[%clk 0:02:58.2]} 8. f4 {[%clk
0:02:56.9]} 8... hxg3 {[%clk 0:02:58]} 9. hxg3 {[%clk 0:02:56.5]} 9... Bg4
{[%clk 0:02:58]} 10. Be3 {[%clk 0:02:52.3]} 10... Nf6 {[%clk 0:02:57.9]} 11. Qd2
{[%clk 0:02:38.5]} 11... Qd7 {[%clk 0:02:57.2]} 12. Nd1 {[%clk 0:01:54]} 12...
Nh5 {[%clk 0:02:50.3]} 13. Bf2 {[%clk 0:01:54.6]} 13... Nd4 {[%clk 0:02:45.3]}
14. Nxd4 {[%clk 0:01:50.2]} 14... cxd4 {[%clk 0:02:44.8]} 15. c3 {[%clk
0:01:46.9]} 15... e5 {[%clk 0:02:45.1]} 16. cxd4 {[%clk 0:01:44.3]} 16... exf4
{[%clk 0:02:44.9]} 17. gxf4 {[%clk 0:01:40.3]} 17... Bh3 {[%clk 0:02:45.1]} 18.
Qe3 {[%clk 0:00:47.5]} 18... Bxg2 {[%clk 0:02:41.4]} 19. Kxg2 {[%clk 0:00:48.4]}
19... Qg4+ {[%clk 0:02:37.3]} 20. Bg3 {[%clk 0:00:47.8]} 20... Bxd4 {[%clk
0:02:36.4]} 21. Qf3 {[%clk 0:00:44.6]} 21... Nxf4+ {[%clk 0:02:35.7]} 22. Qxf4
{[%clk 0:00:42.7]} 22... Qh3+ {[%clk 0:02:36.1]} 0-1